fUST/lending_fUST_20251219
["ID","MTS","AMOUNT","RATE_DAILY","PERIOD"]
[399115447,1766112639767,-4297.84676565,0.00039726,15]
[399115449,1766112639776,-4297.84676565,0.00039726,15]
[399115451,1766112639785,-4297.84676565,0.00039726,15]
[399115453,1766112639794,-4297.84676565,0.00039726,15]
[399115455,1766112639803,-4297.84676565,0.00039726,15]
[399115457,1766112639812,-4297.84676565,0.00039726,15]
[399115459,1766112639821,-4297.84676565,0.00039726,15]
[399115461,1766112639830,-4297.84676565,0.00039726,15]
[399115463,1766112639839,-4297.84676565,0.00039726,15]
[399115465,1766112639848,-4297.84676567,0.00039726,15]
[399115467,1766112639858,-4297.84676567,0.00039726,15]
[399115469,1766112639867,-4297.84676567,0.00039726,15]
[399115471,1766112639876,-4297.84676567,0.00039726,15]
[399115473,1766112639886,-4297.84676567,0.00039726,15]
[399115475,1766112639895,-4297.84676567,0.00039726,15]
[399115477,1766112639904,-4297.84676567,0.00039726,15]
[399115479,1766112639914,-4297.84676567,0.00039726,15]
[399115481,1766112639923,-4297.84676567,0.00039726,15]
[399115483,1766112639932,-4297.84676567,0.00039726,15]
[399115485,1766112639941,-4297.84676567,0.00039726,15]
[399115487,1766112639951,-4297.84676567,0.00039726,15]
[399115489,1766112639961,-4297.84676567,0.00039726,15]
[399115491,1766112639970,-4297.84676567,0.00039726,15]
[399115493,1766112639979,-4297.84676567,0.00039726,15]
[399115495,1766112639988,-4297.84676567,0.00039726,15]
[399115497,1766112639997,-4297.84676567,0.00039726,15]
[399115499,1766112640007,-4297.84676567,0.00039726,15]
[399115501,1766112640016,-4297.84676567,0.00039726,15]
[399115503,1766112640025,-4297.84676567,0.00039726,15]
[399115505,1766112640035,-4297.84676567,0.00039726,15]
[399115506,1766112640045,-4297.84676567,0.00039726,15]
[399115507,1766112640055,-4297.84676567,0.00039726,15]
[399115508,1766112640065,-4297.84676567,0.00039726,15]
[399115509,1766112640074,-4297.84676567,0.00039726,15]
[399115510,1766112640084,-4297.84676567,0.00039726,15]
[399115511,1766112640094,-4297.84676556,0.00039726,15]
[399115512,1766112640103,-455.55773148,0.00039875,12]
[399115513,1766112640112,-100000.0,0.0003999,2]
[399115514,1766112640122,-151.0,0.0003999,120]
[399115515,1766112640131,-153.588438,0.0003999,120]
[399115516,1766112640140,-153.588438,0.0003999,120]
[399115517,1766112640150,-153.588438,0.0003999,120]
[399115518,1766112640160,-153.588438,0.0003999,120]
[399115519,1766112640169,-180.12169503,0.0004,120]
[399115520,1766112640178,-3626.29001678,0.0004,120]
[399115521,1766112640187,-483.95921248,0.00040048,2]
[399115522,1766112640197,-173.27559509,0.00040151,5]
[399115523,1766112640206,-160.0,0.00040704,2]
[399115524,1766112640214,-4634.40353323,0.00040975,120]
[399115525,1766112640223,-11595.89,0.00040975,30]
[399115526,1766112640233,-154.532252,0.00040975,30]
[399115527,1766112640243,-267.54750807,0.00040975,120]
[399115528,1766112640253,-268.07870201,0.00040975,120]
[399115529,1766112640268,-19852.22907344,0.00040975,120]
[399115530,1766112640278,-245.0,0.00040975,30]
[399115531,1766112640288,-3278.12232555,0.00040975,7]
[399115535,1766112640393,-7669.0,0.00040975,120]
[399115536,1766112640404,-515.00819494,0.00041,120]
[399115537,1766112640413,-751.1,0.00041086,3]
[399115538,1766112640422,-375.54,0.00041086,3]
[399115539,1766112640432,-513.84,0.00041096,120]
[399115540,1766112640441,-215.93,0.00041096,120]
[399115541,1766112640453,-170.62,0.00041096,120]
[399115542,1766112640463,-500.0,0.00041096,31]
[399115543,1766112640472,-500.0,0.00041096,31]
[399115544,1766112640482,-500.0,0.00041096,31]
[399115545,1766112640503,-500.0,0.00041096,31]
[399115547,1766112640513,-500.0,0.00041096,31]
[399115549,1766112640523,-500.0,0.00041096,31]
[399115552,1766112640533,-500.0,0.00041096,31]
[399115554,1766112640543,-500.0,0.00041096,31]
[399115556,1766112640553,-500.0,0.00041096,31]
[399115558,1766112640563,-500.0,0.00041096,31]
[399115560,1766112640573,-500.0,0.00041096,31]
[399115562,1766112640583,-500.0,0.00041096,31]
[399115564,1766112640596,-500.0,0.00041096,31]
[399115566,1766112640606,-500.0,0.00041096,31]
[399115568,1766112640616,-500.0,0.00041096,31]
[399115570,1766112640625,-500.0,0.00041096,31]
[399115572,1766112640635,-500.0,0.00041096,31]
[399115574,1766112640645,-500.0,0.00041096,31]
[399115576,1766112640654,-500.0,0.00041096,31]
[399115579,1766112640664,-500.0,0.00041096,31]
[399115581,1766112640676,-500.0,0.00041096,31]
[399115583,1766112640685,-500.0,0.00041096,31]
[399115585,1766112640696,-500.0,0.00041096,31]
[399115587,1766112640706,-500.0,0.00041096,31]
[399115589,1766112640715,-500.0,0.00041096,31]
[399115591,1766112640724,-500.0,0.00041096,31]
[399115593,1766112640734,-500.0,0.00041096,31]
[399115595,1766112640743,-500.0,0.00041096,31]
[399115596,1766112640752,-500.0,0.00041096,31]
[399115598,1766112640761,-500.0,0.00041096,31]
[399115601,1766112640771,-500.0,0.00041096,31]
[399115603,1766112640780,-500.0,0.00041096,31]
[399115605,1766112640790,-500.0,0.00041096,31]
[399115607,1766112640799,-500.0,0.00041096,31]
[399115609,1766112640809,-500.0,0.00041096,31]
[399115611,1766112640818,-500.0,0.00041096,31]
[399115613,1766112640828,-500.0,0.00041096,31]
[399115615,1766112640837,-500.0,0.00041096,31]
[399115617,1766112640846,-500.0,0.00041096,31]
[399115619,1766112640856,-500.0,0.00041096,31]
[399115620,1766112640865,-500.0,0.00041096,31]
[399115622,1766112640875,-500.0,0.00041096,31]
[399115624,1766112640884,-500.0,0.00041096,31]
[399115626,1766112640893,-500.0,0.00041096,31]
[399115628,1766112640903,-500.0,0.00041096,31]
[399115630,1766112640913,-500.0,0.00041096,31]
[399115633,1766112640923,-500.0,0.00041096,31]
[399115635,1766112640933,-500.0,0.00041096,31]
[399115637,1766112640943,-500.0,0.00041096,31]
[399115639,1766112640953,-500.0,0.00041096,31]
[399115641,1766112640962,-500.0,0.00041096,31]
[399115643,1766112640972,-500.0,0.00041096,31]
[399115645,1766112640981,-500.0,0.00041096,31]
[399115647,1766112640991,-500.0,0.00041096,31]
[399115649,1766112641001,-500.0,0.00041096,31]
[399115651,1766112641010,-500.0,0.00041096,31]
[399115653,1766112641019,-500.0,0.00041096,31]
[399115655,1766112641029,-500.0,0.00041096,31]
[399115657,1766112641039,-500.0,0.00041096,31]
[399115659,1766112641048,-500.0,0.00041096,31]
[399115661,1766112641059,-500.0,0.00041096,31]
[399115663,1766112641068,-500.0,0.00041096,31]
[399115665,1766112641078,-500.0,0.00041096,31]
[399115667,1766112641088,-500.0,0.00041096,31]
[399115669,1766112641098,-500.0,0.00041096,31]
[399115671,1766112641107,-500.0,0.00041096,31]
[399115673,1766112641117,-244.86159618,0.00041096,31]
[399115675,1766112641126,-500.0,0.00041096,31]
[399115677,1766112641136,-500.0,0.00041096,31]
[399115679,1766112641145,-500.0,0.00041096,31]
[399115682,1766112641155,-500.0,0.00041096,31]
[399115684,1766112641164,-500.0,0.00041096,31]
[399115686,1766112641175,-500.0,0.00041096,31]
[399115688,1766112641184,-500.0,0.00041096,31]
[399115690,1766112641194,-500.0,0.00041096,31]
[399115692,1766112641203,-500.0,0.00041096,31]
[399115694,1766112641211,-500.0,0.00041096,31]
[399115696,1766112641222,-500.0,0.00041096,31]
[399115698,1766112641231,-260.0,0.00041251,2]
[399115700,1766112641240,-725.53383176,0.00041567,5]
[399115702,1766112641249,-1388.0,0.000416,120]
[399115704,1766112641259,-360.0,0.00041799,2]
[399115706,1766112641270,-926.75396271,0.00042182,5]
[399115707,1766112641281,-327.25621984,0.00042182,5]
[399115709,1766112641292,-460.0,0.00042347,2]
[399115711,1766112641307,-5000.0,0.0004286,4]
[399115714,1766112641316,-560.0,0.00042895,2]
[399115715,1766112641325,-1532.743,0.0004322,30]
[399115717,1766112641334,-660.0,0.00043443,2]
[399115719,1766112641343,-760.0,0.00043991,2]
[399115721,1766112641352,-297.81444876,0.00044539,2]
[399115723,1766112641362,-292.929,0.00045,120]
[399115725,1766112641374,-285.292558,0.00046143,2]
[399115727,1766112641385,-500.0,0.00047,120]
[399115729,1766112641394,-297.83,0.00047,30]
[399115731,1766112641403,-159.7004123,0.00048,120]
[399115733,1766112641412,-257.96,0.00048,2]
[399115735,1766112641421,-1022.36,0.000488,120]
[399115737,1766112641430,-3296.24,0.000488,14]
[399115739,1766112641439,-2999.999999,0.00048888,120]
[399115741,1766112641448,-500.0,0.00049,120]
[399115743,1766112641457,-203.96952136,0.00049,120]
[399115745,1766112641466,-2170.913,0.00049223,2]
[399115747,1766112641475,-523.48,0.00049315,120]
[399115749,1766112641484,-500.0,0.00049315,60]
[399115751,1766112641493,-501.73550813,0.00049315,120]
[399115753,1766112641502,-500.0,0.00049315,120]
[399115755,1766112641512,-424.55138772,0.00049315,120]
[399115757,1766112641521,-505.64680453,0.00049315,120]
[399115759,1766112641530,-498.79088078,0.00049315,120]
[399115762,1766112641540,-527.93696929,0.00049315,120]
[399115764,1766112641550,-522.59709062,0.00049315,120]
[399115766,1766112641559,-515.29248094,0.00049315,120]
[399115768,1766112641569,-500.0,0.00049315,120]
[399115770,1766112641578,-521.32893163,0.00049315,120]
[399115772,1766112641589,-539.93603147,0.00049315,120]
[399115774,1766112641603,-509.66557752,0.00049315,120]
[399115776,1766112641612,-518.10361352,0.00049315,120]
[399115778,1766112641622,-509.41884822,0.00049315,120]
[399115780,1766112641631,-500.0,0.00049315,120]
[399115782,1766112641642,-519.53840549,0.00049315,120]
[399115784,1766112641651,-515.03591617,0.00049315,120]
[399115786,1766112641661,-492.41472722,0.00049315,120]
[399115788,1766112641670,-512.84337867,0.00049315,120]
[399115790,1766112641680,-514.07740444,0.00049315,120]
[399115792,1766112641689,-500.0,0.00049315,120]
[399115794,1766112641700,-525.48887762,0.00049315,120]
[399115796,1766112641709,-176.96694694,0.00049315,120]
[399115798,1766112641718,-302.83601305,0.00049315,120]
[399115800,1766112641728,-151.0,0.00049315,120]
[399115803,1766112641737,-218.47573924,0.00049315,120]
[399115805,1766112641749,-2871.66,0.00049315,120]
[399115807,1766112641766,-153.588438,0.00049315,120]
[399115809,1766112641780,-500.0,0.00049315,120]
[399115811,1766112641791,-153.588438,0.00049315,120]
[399115813,1766112641800,-153.588438,0.00049315,120]
[399115815,1766112641810,-153.588429,0.00049315,120]
[399115817,1766112641820,-500.0,0.00049315,120]
[399115819,1766112641830,-361.8133182,0.00049315,120]
[399115821,1766112641840,-1000.0,0.00049315,120]
[399115823,1766112641849,-221.93894629,0.00049315,120]
[399115825,1766112641859,-500.0,0.00049315,120]
[399115827,1766112641868,-500.0,0.00049315,120]
[399115829,1766112641877,-398.48091353,0.00049315,60]
[399115831,1766112641887,-294.61223247,0.00049315,120]
[399115833,1766112641896,-172.68864538,0.00049315,120]
[399115835,1766112641906,-407.7331514,0.00049315,120]
[399115837,1766112641916,-500.0,0.00049315,120]
[399115839,1766112641925,-566.80384377,0.00049315,120]
[399115841,1766112641934,-500.0,0.00049315,120]
[399115843,1766112641943,-363.77618523,0.00049315,120]
[399115845,1766112641954,-150.02690295,0.00049315,120]
[399115848,1766112641963,-855.64,0.00049315,120]
[399115850,1766112641973,-500.0,0.00049315,120]
[399115852,1766112641982,-519.36437166,0.00049315,120]
[399115854,1766112641991,-543.68216346,0.00049315,120]
[399115855,1766112642000,-646.36572635,0.00049315,120]
[399115857,1766112642010,-543.78039976,0.00049315,21]
[399115860,1766112642020,-500.0,0.00049315,120]
[399115861,1766112642029,-159.93304736,0.00049315,120]
[399115864,1766112642042,-523.94527085,0.00049315,120]
[399115865,1766112642051,-552.68246175,0.00049315,120]
[399115867,1766112642060,-500.0,0.00049315,120]
[399115869,1766112642071,-548.89441008,0.00049315,120]
[399115872,1766112642080,-467.90581539,0.00049315,120]
[399115873,1766112642089,-500.0,0.00049315,120]
[399115875,1766112642098,-500.0,0.00049315,120]
[399115877,1766112642108,-184.0,0.00049589,120]
[399115880,1766112642118,-523.48,0.00049589,120]
[399115881,1766112642127,-415.22715817,0.00049589,60]
[399115883,1766112642137,-500.0,0.00049589,120]
[399115885,1766112642147,-151.0,0.00049589,120]
[399115887,1766112642156,-151.0,0.00049589,120]
[399115889,1766112642165,-153.288474,0.00049589,120]
[399115891,1766112642174,-500.0,0.00049589,120]
[399115893,1766112642183,-2871.66,0.00049589,120]
[399115895,1766112642192,-192.04928184,0.00049589,120]
[399115897,1766112642202,-446.36231011,0.00049589,120]
[399115899,1766112642211,-1000.0,0.00049589,120]
[399115901,1766112642221,-166.03858137,0.00049589,120]
[399115904,1766112642230,-274.16174763,0.00049589,120]
[399115906,1766112642239,-182.90725708,0.00049589,120]
[399115907,1766112642248,-500.0,0.00049589,120]
[399115909,1766112642257,-855.64,0.00049589,120]
[399115911,1766112642267,-500.0,0.00049589,120]
[399115913,1766112642276,-339.60787568,0.00049589,120]
[399115915,1766112642285,-249.6747577,0.00049589,120]
[399115918,1766112642298,-198.13422022,0.00049589,120]
[399115920,1766112642307,-501.61972584,0.00049589,120]
[399115922,1766112642317,-173.596,0.00049854,88]
[399115924,1766112642327,-523.48,0.00049863,120]
[399115926,1766112642337,-500.0,0.00049863,120]
[399115928,1766112642346,-164.20081104,0.00049863,120]
[399115930,1766112642356,-2871.66,0.00049863,120]
[399115932,1766112642365,-1000.0,0.00049863,120]
[399115934,1766112642374,-316.85818327,0.00049863,120]
[399115936,1766112642384,-855.64,0.00049863,120]
[399115938,1766112642393,-500.0,0.00049863,120]
[399115940,1766112642402,-4487.0,0.0005,120]
[399115942,1766112642411,-374.62735445,0.0005,120]
[399115944,1766112642420,-523.48,0.00050136,120]
[399115946,1766112642429,-500.0,0.00050136,120]
[399115948,1766112642438,-2871.66,0.00050136,120]
[399115950,1766112642448,-1119.49603018,0.00050136,120]
[399115952,1766112642458,-855.64,0.00050136,120]
[399115954,1766112642467,-500.0,0.00050136,120]
[399115956,1766112642477,-523.48,0.0005041,120]
[399115958,1766112642493,-500.0,0.0005041,120]
[399115960,1766112642503,-2871.66,0.0005041,120]
[399115962,1766112642512,-855.64,0.0005041,120]
[399115964,1766112642521,-500.0,0.0005041,120]
[399115966,1766112642531,-523.48,0.00050684,120]
[399115968,1766112642540,-500.0,0.00050684,120]
[399115970,1766112642550,-2871.66,0.00050684,120]
[399115972,1766112642560,-855.64,0.00050684,120]
[399115974,1766112642569,-500.0,0.00050684,120]
[399115976,1766112642579,-150.177,0.00050765,120]
[399115978,1766112642590,-150.358,0.00050765,120]
[399115980,1766112642604,-281.503,0.00050765,120]
[399115982,1766112642613,-506.05702234,0.00050944,30]
[399115984,1766112642622,-523.48,0.00050958,120]
[399115986,1766112642632,-500.0,0.00050958,120]
[399115988,1766112642642,-2871.66,0.00050958,120]
[399115990,1766112642651,-855.64,0.00050958,120]
[399115992,1766112642664,-500.0,0.00050958,120]
[399115994,1766112642674,-500.0,0.00051,120]
[399115996,1766112642684,-218.901432,0.00051,85]
[399115998,1766112642693,-523.48,0.00051232,120]
[399116000,1766112642705,-500.0,0.00051232,120]
[399116003,1766112642715,-2871.66,0.00051232,120]
[399116005,1766112642725,-855.64,0.00051232,120]
[399116007,1766112642734,-500.0,0.00051232,120]
[399116008,1766112642744,-523.48,0.00051506,120]
[399116010,1766112642754,-500.0,0.00051506,120]
[399116012,1766112642765,-2871.66,0.00051506,120]
[399116014,1766112642775,-855.64,0.00051506,120]
[399116016,1766112642784,-500.0,0.00051506,120]
[399116018,1766112642793,-523.48,0.0005178,120]
[399116020,1766112642803,-500.0,0.0005178,120]
[399116022,1766112642812,-2871.66,0.0005178,120]
[399116024,1766112642821,-855.64,0.0005178,120]
[399116026,1766112642830,-500.0,0.0005178,120]
[399116028,1766112642839,-205.21847159,0.000518,120]
[399116030,1766112642849,-1499.40016045,0.0005188,120]
[399116032,1766112642858,-4009.0,0.00052,120]
[399116034,1766112642867,-523.48,0.00052054,120]
[399116036,1766112642877,-500.0,0.00052054,120]
[399116038,1766112642887,-2871.66,0.00052054,120]
[399116040,1766112642896,-855.64,0.00052054,120]
[399116042,1766112642906,-500.0,0.00052054,120]
[399116044,1766112642917,-297.83,0.000523,30]
[399116046,1766112642926,-523.48,0.00052328,120]
[399116048,1766112642936,-500.0,0.00052328,120]
[399116050,1766112642949,-2871.66,0.00052328,120]
[399116063,1766112643072,-855.64,0.00052328,120]
[399116065,1766112643081,-500.0,0.00052328,120]
[399116067,1766112643091,-28433.9006,0.0005244,120]
[399116069,1766112643101,-151.0,0.0005244,120]
[399116071,1766112643111,-151.0,0.0005244,120]
[399116073,1766112643121,-257.96,0.000525,2]
[399116076,1766112643132,-523.48,0.00052602,120]
[399116078,1766112643142,-500.0,0.00052602,120]
[399116080,1766112643151,-2871.66,0.00052602,120]
[399116082,1766112643161,-855.64,0.00052602,120]
[399116084,1766112643170,-500.0,0.00052602,120]
[399116086,1766112643179,-285.292558,0.00052632,2]
[399116088,1766112643187,-523.48,0.00052876,120]
[399116090,1766112643199,-500.0,0.00052876,120]
[399116092,1766112643208,-2871.66,0.00052876,120]
[399116094,1766112643217,-855.64,0.00052876,120]
[399116096,1766112643226,-500.0,0.00052876,120]
[399116098,1766112643235,-3296.24,0.000529,14]
[399116100,1766112643247,-500.0,0.00053,120]
[399116102,1766112643268,-156.0,0.00053,120]
[399116104,1766112643288,-17926.186824,0.00053,30]
[399116106,1766112643299,-10539.18937631,0.0005305,2]
[399116108,1766112643309,-523.48,0.0005315,120]
[399116110,1766112643320,-500.0,0.0005315,120]
[399116112,1766112643331,-2871.66,0.0005315,120]
[399116114,1766112643342,-855.64,0.0005315,120]
[399116116,1766112643351,-500.0,0.0005315,120]
[399116118,1766112643360,-190.19490478,0.000533,120]
[399116120,1766112643372,-523.48,0.00053424,120]
[399116122,1766112643383,-500.0,0.00053424,120]
[399116124,1766112643392,-2871.66,0.00053424,120]
[399116126,1766112643402,-855.64,0.00053424,120]
[399116128,1766112643411,-500.0,0.00053424,120]
[399116130,1766112643420,-523.48,0.00053698,120]
[399116132,1766112643429,-500.0,0.00053698,120]
[399116134,1766112643438,-2871.66,0.00053698,120]
[399116136,1766112643447,-855.64,0.00053698,120]
[399116138,1766112643458,-500.0,0.00053698,120]
[399116140,1766112643467,-291.84847396,0.0005388,30]
[399116142,1766112643476,-200.0,0.000539,120]
[399116144,1766112643485,-523.48,0.00053972,120]
[399116146,1766112643495,-500.0,0.00053972,120]
[399116148,1766112643504,-2871.66,0.00053972,120]
[399116150,1766112643514,-855.64,0.00053972,120]
[399116152,1766112643524,-500.0,0.00053972,120]
[399116154,1766112643533,-173.18685722,0.00054,120]
[399116156,1766112643542,-2109.98,0.00054,120]
[399116158,1766112643551,-200.0,0.00054052,120]
[399116160,1766112643559,-523.48,0.00054246,120]
[399116162,1766112643569,-500.0,0.00054246,120]
[399116165,1766112643580,-2871.66,0.00054246,120]
[399116167,1766112643590,-855.64,0.00054246,120]
[399116168,1766112643602,-500.0,0.00054246,120]
[399116170,1766112643611,-523.48,0.0005452,120]
[399116172,1766112643620,-474.26819009,0.0005452,120]
[399116174,1766112643630,-2871.66,0.0005452,120]
[399116176,1766112643640,-855.64,0.0005452,120]
[399116178,1766112643650,-520.01110356,0.0005452,120]
[399116180,1766112643659,-156.0,0.000546,120]
[399116182,1766112643669,-523.48,0.00054794,120]
[399116184,1766112643679,-2871.66,0.00054794,120]
[399116187,1766112643690,-855.64,0.00054794,120]
[399116188,1766112643700,-500.0,0.00054795,120]
[399116190,1766112643709,-500.0,0.00054795,120]
[399116193,1766112643718,-546.37207664,0.00054795,120]
[399116195,1766112643727,-669.28742068,0.00055,120]
[399116196,1766112643737,-189.09863718,0.00055,120]
[399116198,1766112643747,-523.48,0.00055068,120]
[399116201,1766112643756,-2871.66,0.00055068,120]
[399116203,1766112643766,-855.64,0.00055068,120]
[399116205,1766112643776,-692.40927797,0.00055123,5]
[399116207,1766112643785,-523.48,0.00055342,120]
[399116209,1766112643794,-2871.66,0.00055342,120]
[399116211,1766112643803,-855.64,0.00055342,120]
[399116213,1766112643813,-255.09721288,0.000555,120]
[399116215,1766112643823,-523.52968311,0.00055616,120]
[399116217,1766112643831,-2871.72122833,0.00055616,120]
[399116219,1766112643841,-855.79089913,0.00055616,120]
[399116221,1766112643850,-669.28742068,0.00056,120]
[399116223,1766112643859,-500.0,0.00056156,120]
[399116225,1766112643869,-297.83,0.000562,30]
[399116227,1766112643878,-156.0,0.000562,120]
[399116229,1766112643888,-1309534.38615004,0.0005643,60]
[399116231,1766112643897,-257.96,0.000565,2]
[399116232,1766112643906,-1000.0,0.00057,120]
[399116234,1766112643915,-1078.0,0.00057,2]
[399116237,1766112643925,-500.0,0.00057,120]
[399116238,1766112643935,-669.28742068,0.00057,120]
[399116240,1766112643944,-3296.24,0.00057,14]
[399116243,1766112643955,-151.0,0.00057,120]
[399116244,1766112643964,-151.0,0.00057,120]
[399116247,1766112643975,-500.0,0.00057252,120]
[399116249,1766112643984,-250.0,0.00057399,30]
[399116250,1766112643994,-250.0,0.00057399,30]
[399116252,1766112644003,-553.64373807,0.00057399,30]
[399116254,1766112644012,-250.0,0.00057599,30]
[399116256,1766112644022,-250.0,0.00057599,30]
[399116258,1766112644031,-533.88981491,0.00057599,30]
[399116260,1766112644040,-250.0,0.00057699,120]
[399116262,1766112644050,-250.0,0.00057699,120]
[399116264,1766112644059,-514.84070869,0.00057699,120]
[399116266,1766112644068,-161.27428794,0.000577,5]
[399116268,1766112644078,-30000.0,0.0005779,120]
[399116270,1766112644087,-156.0,0.000578,120]
[399116272,1766112644096,-200.0,0.00057961,120]
[399116274,1766112644106,-500.0,0.00057973,120]
[399116276,1766112644115,-500.0,0.00057973,120]
[399116278,1766112644124,-500.0,0.00057973,120]
[399116280,1766112644133,-500.0,0.00057973,120]
[399116282,1766112644143,-500.0,0.00057973,120]
[399116284,1766112644152,-401.56662654,0.00057973,120]
[399116286,1766112644161,-250.0,0.00057998,60]
[399116288,1766112644170,-250.0,0.00057998,60]
[399116290,1766112644179,-496.47127164,0.00057998,60]
[399116292,1766112644188,-250.0,0.00057999,120]
[399116294,1766112644197,-250.0,0.00057999,120]
[399116296,1766112644206,-478.75725327,0.00057999,120]
[399116298,1766112644215,-340729.96535704,0.00058,120]
[399116303,1766112644253,-94368.96508676,0.00058,120]
[399116404,1766112645178,-1193.17,0.00058,120]
[399116416,1766112645288,-3e-08,0.00058,120]
[399116606,1766112647584,-500.0,0.00038896,15]
[399116607,1766112647596,-283.43402377,0.00038896,15]
[399116608,1766112647620,-216.56597623,0.00038896,15]
[399116609,1766112647635,-500.0,0.00038896,15]
[399116610,1766112647646,-500.0,0.00038896,15]
[399116611,1766112647655,-500.0,0.00038896,15]
[399116612,1766112647665,-66.6764178,0.00038896,15]
[399116759,1766112683994,166.39,0.00013273,2]
[399116760,1766112723863,628.298984,0.00013273,2]
[399116761,1766112727601,500.0,0.00013699,2]
[399116762,1766112727654,792.10906666,0.00014247,2]
[399116763,1766112727675,207.89093334,0.00014247,2]
[399116764,1766112727707,1500.0,0.00014795,2]
[399116765,1766112727763,2000.0,0.00015342,2]
[399116766,1766112748660,502.11017941,0.0001589,2]
[399116767,1766112783706,500.21307807,0.00013273,2]
[399116768,1766112786641,558.6876356,0.00013699,2]
[399116769,1766112790410,300.0,0.00013673,2]
[399116770,1766112790463,377.01545042,0.00014221,2]
[399116771,1766112793315,500.0,0.00013699,2]
[399116772,1766112843027,500.0,0.00013699,2]
[399116773,1766112843086,1000.0,0.00014247,2]
[399116774,1766112843143,1500.0,0.00014795,2]
[399116775,1766112843218,2000.0,0.00015342,2]
[399116776,1766112843265,2157.04326763,0.0001589,2]
[399116777,1766112845434,150.0,0.00010227,2]
[399116778,1766112845853,192.37,0.00011157,2]
[399116779,1766112846273,288.56,0.00012087,2]
[399116780,1766112847754,-384.75,0.00013016,2]
[399116781,1766112847780,-500.0,0.00013273,2]
[399116782,1766112847805,-500.0,0.00013699,2]
[399116783,1766112847833,-500.0,0.00013699,2]
[399116784,1766112847861,-500.0,0.00013699,2]
[399116785,1766112848029,-846.2828821,0.00013821,2]
[399116786,1766112848062,-480.94,0.00013946,2]
[399116787,1766112848090,-501.27079192,0.00014247,2]
[399116788,1766112848118,-573.52265196,0.00014247,2]
[399116789,1766112848224,-426.47734804,0.00014247,2]
[399116790,1766112848254,-1000.0,0.00014247,2]
[399116791,1766112848284,-1500.0,0.00014795,2]
[399116792,1766112848313,-1000.0,0.00014795,2]
[399116793,1766112848344,-577.12,0.00014876,2]
[399116809,1766112966299,-398.33954437,0.00013273,2]
[399116824,1766113151557,-1849.26218208,0.0001314,2]
[399116826,1766113152001,-35.20408406,0.00013273,2]
[399116827,1766113152022,-209.87063011,0.00013273,2]
[399116831,1766113206317,-227.04856162,0.00013273,2]
[399116832,1766113209070,-206.49506681,0.00013273,2]
[399116833,1766113209094,-12.16590474,0.00013417,2]
[399116834,1766113214132,-193.91219098,0.00013417,2]
[399116835,1766113216206,-354.6359194,0.00013417,2]
[399116836,1766113218311,-50.28598488,0.00013417,2]
[399116837,1766113218333,-150.0,0.00013417,2]
[399116838,1766113218353,-184.13430308,0.00013417,2]
[399116844,1766113281283,-283.11574453,0.00013273,2]
[399116845,1766113285839,-192.5793027,0.00013273,2]
[399116846,1766113287553,5000.0,0.00013273,2]
[399116847,1766113288531,-24.30495277,0.00013273,2]
[399116848,1766113288556,-267.94231472,0.00013273,2]
[399116851,1766113293501,-198.5,0.00013273,2]
[399116852,1766113295566,-157.29705517,0.00013273,2]
[399116853,1766113295589,-74.76063011,0.00013417,2]